[Event "*** Titled Tuesday 3|2 Blitz"]
[Site "Chess.com"]
[Date "2015.07.07"]
[Round "9"]
[White "Tirantes"]
[Black "alexsuper1987"]
[Result "1/2-1/2"]
[WhiteElo "2203"]
[BlackElo "2062"]
[TimeControl "180+2"]
[EndTime "12:53:38 PDT"]
[Termination "Game drawn by agreement"]

1. c4 {[%clk 0:03:01.9]} 1... Nf6 {[%clk 0:03:00.4]} 2. Nc3 {[%clk 0:03:01.6]}
2... c5 {[%clk 0:02:59.8]} 3. g3 {[%clk 0:03:00.5]} 3... e6 {[%clk 0:02:59]} 4.
Nf3 {[%clk 0:02:57.9]} 4... Be7 {[%clk 0:03:00.2]} 5. Bg2 {[%clk 0:02:57.3]}
5... O-O {[%clk 0:03:01.6]} 6. d4 {[%clk 0:02:57.7]} 6... cxd4 {[%clk 0:03:01]}
7. Nxd4 {[%clk 0:02:58.3]} 7... d5 {[%clk 0:03:01.8]} 8. cxd5 {[%clk 0:02:50.8]}
8... exd5 {[%clk 0:03:02.3]} 9. O-O {[%clk 0:02:50.6]} 9... Nc6 {[%clk
0:03:03.3]} 10. Bg5 {[%clk 0:02:49.6]} 10... Bg4 {[%clk 0:02:53.9]} 11. h3
{[%clk 0:02:43.4]} 11... Be6 {[%clk 0:02:54.8]} 12. Rc1 {[%clk 0:02:41.3]} 12...
Rc8 {[%clk 0:02:51.1]} 13. Qa4 {[%clk 0:02:32.4]} 13... Nxd4 {[%clk 0:02:42.3]}
14. Qxd4 {[%clk 0:02:31.6]} 14... h6 {[%clk 0:02:34.7]} 15. Bxf6 {[%clk
0:02:09.4]} 15... Bxf6 {[%clk 0:02:34.4]} 16. Qd2 {[%clk 0:02:08.5]} 16... Qa5
{[%clk 0:01:08]} 17. Rfd1 {[%clk 0:01:50.5]} 17... Rfd8 {[%clk 0:01:08.9]} 18.
a3 {[%clk 0:01:35.2]} 18... d4 {[%clk 0:00:53.1]} 19. Ne4 {[%clk 0:01:28.5]}
19... Qxd2 {[%clk 0:00:53.8]} 20. Nxd2 {[%clk 0:01:27.4]} 20... Rxc1 {[%clk
0:00:46.1]} 21. Rxc1 {[%clk 0:01:27.7]} 21... d3 {[%clk 0:00:47.5]} 22. exd3
{[%clk 0:01:19.5]} 22... Bxb2 {[%clk 0:00:44.5]} 23. Rb1 {[%clk 0:01:14.6]}
23... Bxa3 {[%clk 0:00:43.7]} 24. Rxb7 {[%clk 0:01:13]} 24... Rxd3 {[%clk
0:00:42.1]} 25. Rxa7 {[%clk 0:01:01.5]} 25... g6 {[%clk 0:00:32.9]} 26. Ne4
{[%clk 0:00:45.6]} 26... Kg7 {[%clk 0:00:29.3]} 27. h4 {[%clk 0:00:38.9]} 27...
Bb2 {[%clk 0:00:28.4]} 28. Kh2 {[%clk 0:00:28.7]} 28... Bd4 {[%clk 0:00:19]} 29.
Rc7 {[%clk 0:00:29.3]} 29... Rd1 {[%clk 0:00:16.4]} 30. Rc2 {[%clk 0:00:25.8]}
30... Be5 {[%clk 0:00:15.6]} 31. Re2 {[%clk 0:00:24.3]} 31... Ra1 {[%clk
0:00:13.7]} 32. Nc5 {[%clk 0:00:23.3]} 32... Kf6 {[%clk 0:00:12.5]} 33. Nxe6
{[%clk 0:00:21]} 33... fxe6 {[%clk 0:00:14.4]} 34. f4 {[%clk 0:00:21.2]} 34...
Bd6 {[%clk 0:00:15.2]} 35. Bh3 {[%clk 0:00:21.5]} 35... e5 {[%clk 0:00:15.9]}
36. fxe5+ {[%clk 0:00:21.1]} 36... Bxe5 {[%clk 0:00:17.8]} 37. Rf2+ {[%clk
0:00:20.6]} 37... Ke7 {[%clk 0:00:18.3]} 38. Re2 {[%clk 0:00:21]} 38... Kf6
{[%clk 0:00:19.5]} 39. Rf2+ {[%clk 0:00:20.5]} 1/2-1/2

[Event "*** Titled Tuesday 3|2 Blitz"]
[Site "Chess.com"]
[Date "2015.07.07"]
[Round "9"]
[White "wonderfultime"]
[Black "GMHess"]
[Result "0-1"]
[WhiteElo "2556"]
[BlackElo "2547"]
[TimeControl "180+2"]
[EndTime "12:53:46 PDT"]
[Termination "GMHess won by resignation"]

1. d4 {[%clk 0:03:01.9]} 1... g6 {[%clk 0:02:53.6]} 2. c4 {[%clk 0:03:03]} 2...
Bg7 {[%clk 0:02:55]} 3. Nc3 {[%clk 0:03:04.5]} 3... c5 {[%clk 0:02:56.1]} 4. d5
{[%clk 0:03:03.8]} 4... Bxc3+ {[%clk 0:02:57.1]} 5. bxc3 {[%clk 0:03:05]} 5...
f5 {[%clk 0:02:58.8]} 6. h4 {[%clk 0:02:52.5]} 6... Nf6 {[%clk 0:02:59.6]} 7. h5
{[%clk 0:02:46.2]} 7... Rg8 {[%clk 0:03:00.1]} 8. hxg6 {[%clk 0:02:46.9]} 8...
hxg6 {[%clk 0:03:01.1]} 9. Nf3 {[%clk 0:02:41.2]} 9... Qa5 {[%clk 0:02:59.5]}
10. Qd3 {[%clk 0:02:41.9]} 10... d6 {[%clk 0:02:57.9]} 11. Ng5 {[%clk
0:02:42.6]} 11... Nbd7 {[%clk 0:02:56.1]} 12. Bf4 {[%clk 0:02:37.1]} 12... Nb6
{[%clk 0:02:52.9]} 13. g3 {[%clk 0:02:03.4]} 13... Bd7 {[%clk 0:02:47.8]} 14.
Bg2 {[%clk 0:01:48.4]} 14... O-O-O {[%clk 0:02:42.6]} 15. Ne6 {[%clk 0:01:45.9]}
15... Rde8 {[%clk 0:02:20.7]} 16. a4 {[%clk 0:01:28.6]} 16... Qa6 {[%clk
0:02:00]} 17. a5 {[%clk 0:01:28.8]} 17... Nxc4 {[%clk 0:02:00.8]} 18. O-O {[%clk
0:01:29.8]} 18... Ng4 {[%clk 0:01:22.5]} 19. Rfb1 {[%clk 0:01:11.2]} 19... Rh8
{[%clk 0:01:06.3]} 20. Nxc5 {[%clk 0:00:33.5]} 20... dxc5 {[%clk 0:00:44.6]} 21.
d6 {[%clk 0:00:35]} 21... Nxd6 {[%clk 0:00:27]} 22. Bxb7+ {[%clk 0:00:34.9]}
22... Qxb7 {[%clk 0:00:26.8]} 23. Rxb7 {[%clk 0:00:35.9]} 23... Bc6 {[%clk
0:00:17.4]} 24. Rb8+ {[%clk 0:00:21.4]} 24... Kxb8 {[%clk 0:00:17.3]} 25. Bxd6+
{[%clk 0:00:22.5]} 25... Ka8 {[%clk 0:00:17.8]} 26. f3 {[%clk 0:00:19.4]} 26...
Rh1+ {[%clk 0:00:14.9]} 27. Kxh1 {[%clk 0:00:21.3]} 27... Nf2+ {[%clk
0:00:15.5]} 28. Kg2 {[%clk 0:00:22.5]} 28... Nxd3 {[%clk 0:00:17.2]} 29. Bc7
{[%clk 0:00:22.7]} 29... Rc8 {[%clk 0:00:15.4]} 30. Bb6 {[%clk 0:00:20.7]} 30...
Ne5 {[%clk 0:00:12]} 31. Bxc5 {[%clk 0:00:17.3]} 31... Bxf3+ {[%clk 0:00:13]}
32. exf3 {[%clk 0:00:19.2]} 32... Rxc5 {[%clk 0:00:14.6]} 33. f4 {[%clk
0:00:20.9]} 33... Nc6 {[%clk 0:00:15.5]} 34. a6 {[%clk 0:00:22.1]} 34... Ra5
{[%clk 0:00:15.5]} 35. Re1 {[%clk 0:00:21.3]} 35... Ra2+ {[%clk 0:00:16.6]} 36.
Kh3 {[%clk 0:00:21.9]} 36... Rxa6 {[%clk 0:00:18.1]} 37. Re6 {[%clk 0:00:23.5]}
37... Nb8 {[%clk 0:00:17.1]} 38. Rxe7 {[%clk 0:00:24.6]} 38... Rc6 {[%clk
0:00:18.8]} 39. Kh4 {[%clk 0:00:23.8]} 39... a5 {[%clk 0:00:20.2]} 40. Re5
{[%clk 0:00:25]} 40... Ra6 {[%clk 0:00:21.1]} 41. Kg5 {[%clk 0:00:26.5]} 41...
a4 {[%clk 0:00:22.6]} 42. Re2 {[%clk 0:00:28.3]} 42... a3 {[%clk 0:00:23.8]} 43.
Ra2 {[%clk 0:00:30.2]} 43... Nd7 {[%clk 0:00:25.1]} 44. g4 {[%clk 0:00:31.2]}
44... fxg4 {[%clk 0:00:25.4]} 45. Kxg4 {[%clk 0:00:33.1]} 45... Nf6+ {[%clk
0:00:26.6]} 46. Kg5 {[%clk 0:00:34.2]} 46... Ne4+ {[%clk 0:00:27.8]} 0-1

[Event "*** Titled Tuesday 3|2 Blitz"]
[Site "Chess.com"]
[Date "2015.07.07"]
[Round "9"]
[White "MinhGTrAn"]
[Black "Cryptochess"]
[Result "1-0"]
[WhiteElo "2579"]
[BlackElo "2366"]
[TimeControl "180+2"]
[EndTime "12:53:51 PDT"]
[Termination "MinhGTrAn won by resignation"]

1. d4 {[%clk 0:03:01.9]} 1... Nf6 {[%clk 0:02:59.7]} 2. Bg5 {[%clk 0:03:01.2]}
2... e6 {[%clk 0:02:58.2]} 3. e4 {[%clk 0:03:01.8]} 3... h6 {[%clk 0:02:53.8]}
4. Bxf6 {[%clk 0:03:02.9]} 4... Qxf6 {[%clk 0:02:55.7]} 5. c3 {[%clk 0:03:04.1]}
5... g6 {[%clk 0:02:55.4]} 6. Nd2 {[%clk 0:03:00.6]} 6... Bg7 {[%clk 0:02:56.5]}
7. g3 {[%clk 0:02:59.3]} 7... O-O {[%clk 0:02:57.6]} 8. Bg2 {[%clk 0:03:00.9]}
8... d6 {[%clk 0:02:58.6]} 9. Ne2 {[%clk 0:03:02]} 9... Qe7 {[%clk 0:02:59.9]}
10. O-O {[%clk 0:02:58.2]} 10... b6 {[%clk 0:03:01]} 11. e5 {[%clk 0:02:56.4]}
11... d5 {[%clk 0:03:02]} 12. f4 {[%clk 0:02:56.2]} 12... Ba6 {[%clk 0:03:03.1]}
13. g4 {[%clk 0:02:56.6]} 13... f6 {[%clk 0:02:47.6]} 14. exf6 {[%clk
0:02:42.8]} 14... Bxf6 {[%clk 0:02:43.9]} 15. Rf2 {[%clk 0:02:37.6]} 15... Nd7
{[%clk 0:02:43.7]} 16. Ng3 {[%clk 0:02:36.7]} 16... c5 {[%clk 0:02:44]} 17. Nf3
{[%clk 0:02:35.3]} 17... cxd4 {[%clk 0:02:42.7]} 18. cxd4 {[%clk 0:02:37.2]}
18... Bg7 {[%clk 0:02:43.8]} 19. Qa4 {[%clk 0:02:25.7]} 19... Bd3 {[%clk
0:02:29.4]} 20. Rd1 {[%clk 0:02:18]} 20... Be4 {[%clk 0:02:06.2]} 21. Nxe4
{[%clk 0:01:59.8]} 21... dxe4 {[%clk 0:02:08.1]} 22. Ne5 {[%clk 0:01:57.9]}
22... Nxe5 {[%clk 0:01:58.1]} 23. dxe5 {[%clk 0:01:54.5]} 23... e3 {[%clk
0:01:58.5]} 24. Re2 {[%clk 0:01:47.4]} 24... Rad8 {[%clk 0:01:59.2]} 25. Rde1
{[%clk 0:01:13.1]} 25... g5 {[%clk 0:01:50.9]} 26. fxg5 {[%clk 0:01:11.4]} 26...
Qxg5 {[%clk 0:01:46.4]} 27. Rxe3 {[%clk 0:01:10.5]} 27... Rf4 {[%clk 0:01:47.2]}
28. Re4 {[%clk 0:01:06.3]} 28... Rdf8 {[%clk 0:01:44.8]} 29. h3 {[%clk
0:00:51.9]} 29... h5 {[%clk 0:01:40.3]} 30. Qd7 {[%clk 0:00:37.8]} 30... Qg6
{[%clk 0:01:06.5]} 31. gxh5 {[%clk 0:00:39.1]} 31... Qg3 {[%clk 0:00:59.3]} 32.
Qxe6+ {[%clk 0:00:36.8]} 32... Kh8 {[%clk 0:01:00.4]} 33. Qg6 {[%clk 0:00:19.9]}
33... Qh4 {[%clk 0:01:00]} 34. e6 {[%clk 0:00:16.5]} 34... Bd4+ {[%clk
0:00:43.4]} 35. Kh1 {[%clk 0:00:16.6]} 35... Rxe4 {[%clk 0:00:13.7]} 36. Rxe4
{[%clk 0:00:16]} 36... Qe7 {[%clk 0:00:05.8]} 37. Rxd4 {[%clk 0:00:14.9]} 37...
Qc5 {[%clk 0:00:05.7]} 38. Qh6+ {[%clk 0:00:14.1]} 1-0

[Event "*** Titled Tuesday 3|2 Blitz"]
[Site "Chess.com"]
[Date "2015.07.07"]
[Round "9"]
[White "MichiganEagle"]
[Black "matein28"]
[Result "0-1"]
[WhiteElo "2256"]
[BlackElo "2239"]
[TimeControl "180+2"]
[EndTime "12:54:16 PDT"]
[Termination "matein28 won by resignation"]

1. d4 {[%clk 0:03:01.9]} 1... d5 {[%clk 0:03:01.3]} 2. Nf3 {[%clk 0:02:57.9]}
2... Nf6 {[%clk 0:03:02.2]} 3. c4 {[%clk 0:02:57.8]} 3... c6 {[%clk 0:02:58.6]}
4. Qc2 {[%clk 0:02:58.3]} 4... g6 {[%clk 0:02:57.9]} 5. Bf4 {[%clk 0:02:57.3]}
5... Bg7 {[%clk 0:02:58.4]} 6. e3 {[%clk 0:02:58.4]} 6... O-O {[%clk 0:02:59.6]}
7. Nbd2 {[%clk 0:02:58.7]} 7... Ne4 {[%clk 0:03:00.6]} 8. Nxe4 {[%clk
0:02:53.1]} 8... dxe4 {[%clk 0:03:01.7]} 9. Nd2 {[%clk 0:02:45.2]} 9... f5
{[%clk 0:02:59.1]} 10. Be2 {[%clk 0:02:39.5]} 10... Nd7 {[%clk 0:02:59.7]} 11.
O-O {[%clk 0:02:06.5]} 11... e5 {[%clk 0:03:00.1]} 12. dxe5 {[%clk 0:02:07.7]}
12... Nxe5 {[%clk 0:03:00]} 13. Rad1 {[%clk 0:02:09.2]} 13... Qe7 {[%clk
0:02:55.6]} 14. Nb3 {[%clk 0:02:10.2]} 14... Be6 {[%clk 0:02:51.8]} 15. h3
{[%clk 0:02:10.5]} 15... Rad8 {[%clk 0:02:46.5]} 16. a3 {[%clk 0:01:49.5]} 16...
Nd3 {[%clk 0:02:29.8]} 17. Bxd3 {[%clk 0:01:39.5]} 17... exd3 {[%clk 0:02:29.8]}
18. Rxd3 {[%clk 0:01:41]} 18... Rxd3 {[%clk 0:02:30.5]} 19. Qxd3 {[%clk
0:01:42.9]} 19... Bxb2 {[%clk 0:02:31.8]} 20. Nd4 {[%clk 0:01:31.2]} 20... Bf7
{[%clk 0:02:17]} 21. Rb1 {[%clk 0:01:12.5]} 21... Bxa3 {[%clk 0:01:29.3]} 22.
Qb3 {[%clk 0:01:06.9]} 22... b5 {[%clk 0:01:10.8]} 23. Nxc6 {[%clk 0:01:06.7]}
23... Qe4 {[%clk 0:01:11.9]} 24. Qxa3 {[%clk 0:00:18.4]} 24... Qxb1+ {[%clk
0:00:30.6]} 25. Kh2 {[%clk 0:00:19.8]} 25... b4 {[%clk 0:00:32.2]} 26. Qxa7
{[%clk 0:00:17.8]} 26... Qe4 {[%clk 0:00:21.9]} 27. Ne7+ {[%clk 0:00:13.7]}
27... Kg7 {[%clk 0:00:18.5]} 28. f3 {[%clk 0:00:14.9]} 28... Qd3 {[%clk
0:00:09.4]} 29. Be5+ {[%clk 0:00:10.6]} 29... Kh6 {[%clk 0:00:09.8]} 30. h4
{[%clk 0:00:05.6]} 30... Qxc4 {[%clk 0:00:04.9]} 31. Bf4+ {[%clk 0:00:06.4]}
31... Kh5 {[%clk 0:00:06.6]} 32. Kh3 {[%clk 0:00:06]} 32... Qf1 {[%clk
0:00:05.8]} 33. Kg3 {[%clk 0:00:06.8]} 33... Qe1+ {[%clk 0:00:06.9]} 34. Kh2
{[%clk 0:00:08.4]} 34... Qxh4+ {[%clk 0:00:08.2]} 35. Kg1 {[%clk 0:00:10.1]}
35... Rd8 {[%clk 0:00:07.7]} 36. g4+ {[%clk 0:00:08.9]} 36... fxg4 {[%clk
0:00:07.8]} 37. Qa5+ {[%clk 0:00:10.4]} 37... g5 {[%clk 0:00:08.8]} 38. Qxd8
{[%clk 0:00:11.4]} 38... Qe1+ {[%clk 0:00:10.1]} 39. Kg2 {[%clk 0:00:12.1]}
39... Qe2+ {[%clk 0:00:11.5]} 40. Kg3 {[%clk 0:00:12.6]} 40... Qxf3+ {[%clk
0:00:12.6]} 41. Kh2 {[%clk 0:00:14]} 41... Qh3+ {[%clk 0:00:13.9]} 42. Kg1
{[%clk 0:00:14.6]} 42... g3 {[%clk 0:00:13.1]} 43. Bxg3 {[%clk 0:00:14.6]} 43...
Qxg3+ {[%clk 0:00:14.3]} 44. Kf1 {[%clk 0:00:16]} 44... Bc4+ {[%clk 0:00:14.4]}
0-1

[Event "*** Titled Tuesday 3|2 Blitz"]
[Site "Chess.com"]
[Date "2015.07.07"]
[Round "9"]
[White "stefanodinn"]
[Black "Recombinant"]
[Result "1-0"]
[WhiteElo "2123"]
[BlackElo "2101"]
[TimeControl "180+2"]
[EndTime "12:54:19 PDT"]
[Termination "stefanodinn won by checkmate"]

1. Nf3 {[%clk 0:03:01.9]} 1... b5 {[%clk 0:02:58.8]} 2. e3 {[%clk 0:03:00]} 2...
b4 {[%clk 0:02:58.3]} 3. a3 {[%clk 0:02:53.4]} 3... e6 {[%clk 0:02:57.4]} 4.
axb4 {[%clk 0:02:50.9]} 4... Bxb4 {[%clk 0:02:56.7]} 5. c3 {[%clk 0:02:51.5]}
5... Be7 {[%clk 0:02:57.4]} 6. d4 {[%clk 0:02:52.2]} 6... Bb7 {[%clk 0:02:57.5]}
7. Bd3 {[%clk 0:02:52.8]} 7... f5 {[%clk 0:02:58.5]} 8. O-O {[%clk 0:02:53.1]}
8... Nf6 {[%clk 0:02:59.5]} 9. c4 {[%clk 0:02:35.6]} 9... Be4 {[%clk 0:02:57.4]}
10. Nc3 {[%clk 0:02:35.2]} 10... Bxd3 {[%clk 0:02:57.8]} 11. Qxd3 {[%clk
0:02:35.6]} 11... c6 {[%clk 0:02:58.4]} 12. d5 {[%clk 0:02:33.5]} 12... cxd5
{[%clk 0:02:56.5]} 13. cxd5 {[%clk 0:02:31.6]} 13... h6 {[%clk 0:02:25.9]} 14.
Rd1 {[%clk 0:02:19.4]} 14... Kf7 {[%clk 0:02:22.2]} 15. Ne5+ {[%clk 0:02:17.8]}
15... Ke8 {[%clk 0:02:18.2]} 16. d6 {[%clk 0:02:01.7]} 16... Bf8 {[%clk
0:02:17.8]} 17. e4 {[%clk 0:02:02.3]} 17... fxe4 {[%clk 0:02:15.9]} 18. Nxe4
{[%clk 0:02:02.1]} 18... Nc6 {[%clk 0:01:54.8]} 19. Bf4 {[%clk 0:01:49.4]} 19...
Nxe5 {[%clk 0:01:54.9]} 20. Bxe5 {[%clk 0:01:50.1]} 20... Kf7 {[%clk 0:01:48.1]}
21. Ra4 {[%clk 0:01:28.9]} 21... Qb6 {[%clk 0:01:36.4]} 22. Qf3 {[%clk 0:00:53]}
22... Qd8 {[%clk 0:01:28.9]} 23. Nxf6 {[%clk 0:00:49.1]} 23... gxf6 {[%clk
0:01:29]} 24. Qh5+ {[%clk 0:00:49.9]} 24... Kg8 {[%clk 0:01:27.1]} 25. Rg4+
{[%clk 0:00:47.9]} 25... Bg7 {[%clk 0:01:28.1]} 26. Qg6 {[%clk 0:00:44.8]} 26...
Rh7 {[%clk 0:01:18.5]} 27. Bxf6 {[%clk 0:00:44.8]} 27... Qe8 {[%clk 0:01:13.9]}
28. Qxh7+ {[%clk 0:00:34.7]} 28... Kxh7 {[%clk 0:01:11.6]} 29. Rxg7+ {[%clk
0:00:35.5]} 29... Kh8 {[%clk 0:01:12.5]} 30. Re7+ {[%clk 0:00:32.8]} 30... Kg8
{[%clk 0:01:12.6]} 31. Rxe8+ {[%clk 0:00:33.8]} 31... Rxe8 {[%clk 0:01:14.5]}
32. Be7 {[%clk 0:00:27.5]} 32... Rb8 {[%clk 0:01:14.7]} 33. Rd2 {[%clk
0:00:28.1]} 33... a5 {[%clk 0:01:14.8]} 34. g3 {[%clk 0:00:28.9]} 34... a4
{[%clk 0:01:16]} 35. Kg2 {[%clk 0:00:29.3]} 35... h5 {[%clk 0:01:16.2]} 36. f4
{[%clk 0:00:28.3]} 36... Kf7 {[%clk 0:01:16.3]} 37. Kh3 {[%clk 0:00:28.5]} 37...
e5 {[%clk 0:01:15.5]} 38. fxe5 {[%clk 0:00:28.8]} 38... Ke6 {[%clk 0:01:16.7]}
39. Rd4 {[%clk 0:00:29.4]} 39... Kxe5 {[%clk 0:01:16.8]} 40. Rxa4 {[%clk
0:00:29.6]} 40... Rxb2 {[%clk 0:01:17.9]} 41. Ra5+ {[%clk 0:00:29.1]} 41... Ke6
{[%clk 0:01:18.2]} 42. Rxh5 {[%clk 0:00:29.4]} 42... Kf7 {[%clk 0:01:17.9]} 43.
Rh6 {[%clk 0:00:26]} 43... Ra2 {[%clk 0:01:16.4]} 44. Rf6+ {[%clk 0:00:26.6]}
44... Kg7 {[%clk 0:01:16.6]} 45. Rf3 {[%clk 0:00:26.8]} 45... Ra1 {[%clk
0:01:16.2]} 46. g4 {[%clk 0:00:26.9]} 46... Ra2 {[%clk 0:01:15.6]} 47. Kg3
{[%clk 0:00:27.1]} 47... Ra4 {[%clk 0:01:16.3]} 48. h4 {[%clk 0:00:27.6]} 48...
Kh7 {[%clk 0:01:15.2]} 49. h5 {[%clk 0:00:28.3]} 49... Ra2 {[%clk 0:01:16]} 50.
Kh4 {[%clk 0:00:28.8]} 50... Ra1 {[%clk 0:01:16.6]} 51. Kg5 {[%clk 0:00:28]}
51... Kg7 {[%clk 0:01:15.7]} 52. h6+ {[%clk 0:00:27.5]} 52... Kg8 {[%clk
0:01:14.9]} 53. Rf8+ {[%clk 0:00:24.9]} 53... Kh7 {[%clk 0:01:15.8]} 54. Rf7+
{[%clk 0:00:25.6]} 54... Kg8 {[%clk 0:01:15.6]} 55. Kg6 {[%clk 0:00:20.8]} 55...
Ra8 {[%clk 0:01:11.6]} 56. h7+ {[%clk 0:00:19.1]} 56... Kh8 {[%clk 0:01:08.4]}
57. Bf6# {[%clk 0:00:19.5]} 1-0

[Event "*** Titled Tuesday 3|2 Blitz"]
[Site "Chess.com"]
[Date "2015.07.07"]
[Round "9"]
[White "Canonkasparov"]
[Black "MFBerna"]
[Result "1-0"]
[WhiteElo "2253"]
[BlackElo "2117"]
[TimeControl "180+2"]
[EndTime "12:55:36 PDT"]
[Termination "Canonkasparov won on time"]

1. d4 {[%clk 0:03:01.2]} 1... d5 {[%clk 0:03:00.2]} 2. Nf3 {[%clk 0:03:02.3]}
2... Nf6 {[%clk 0:02:59]} 3. Bf4 {[%clk 0:03:03.2]} 3... Bf5 {[%clk 0:02:59.7]}
4. c4 {[%clk 0:03:03.1]} 4... c6 {[%clk 0:02:59.9]} 5. Qb3 {[%clk 0:03:02.9]}
5... Qb6 {[%clk 0:03:00.1]} 6. c5 {[%clk 0:03:03.3]} 6... Qxb3 {[%clk 0:02:59]}
7. axb3 {[%clk 0:03:04.4]} 7... Nbd7 {[%clk 0:02:56.7]} 8. h3 {[%clk 0:03:03.5]}
8... a6 {[%clk 0:02:48.5]} 9. Nbd2 {[%clk 0:03:03.7]} 9... h6 {[%clk 0:02:39.6]}
10. e3 {[%clk 0:03:03.9]} 10... e6 {[%clk 0:02:40.1]} 11. b4 {[%clk 0:03:04.4]}
11... Rc8 {[%clk 0:02:38.8]} 12. Nb3 {[%clk 0:03:04.7]} 12... Ra8 {[%clk
0:02:26.6]} 13. b5 {[%clk 0:03:03]} 13... cxb5 {[%clk 0:02:26.6]} 14. Bxb5
{[%clk 0:03:03]} 14... Be7 {[%clk 0:02:19.2]} 15. Ne5 {[%clk 0:03:02]} 15... Rc8
{[%clk 0:01:59.3]} 16. Ba4 {[%clk 0:02:59.2]} 16... Bc2 {[%clk 0:01:49.1]} 17.
O-O {[%clk 0:02:50.3]} 17... Bxb3 {[%clk 0:01:44.6]} 18. Bxb3 {[%clk 0:02:50.4]}
18... Nxe5 {[%clk 0:01:40.4]} 19. Bxe5 {[%clk 0:02:50.4]} 19... O-O {[%clk
0:01:38.3]} 20. Ba4 {[%clk 0:02:49.1]} 20... Rfd8 {[%clk 0:01:36]} 21. f3 {[%clk
0:02:46.5]} 21... Nd7 {[%clk 0:01:35.3]} 22. Bxd7 {[%clk 0:02:35.6]} 22... Rxd7
{[%clk 0:01:37.2]} 23. b4 {[%clk 0:02:35.2]} 23... f6 {[%clk 0:01:33.2]} 24. Bg3
{[%clk 0:02:34.7]} 24... Bd8 {[%clk 0:01:28.8]} 25. b5 {[%clk 0:02:33.8]} 25...
axb5 {[%clk 0:01:28.9]} 26. Rfb1 {[%clk 0:02:30.4]} 26... Bc7 {[%clk 0:01:21.3]}
27. Bxc7 {[%clk 0:02:29.1]} 27... Rcxc7 {[%clk 0:01:22.6]} 28. Rxb5 {[%clk
0:02:30.2]} 28... Kf7 {[%clk 0:01:21.5]} 29. Rab1 {[%clk 0:02:30.1]} 29... e5
{[%clk 0:01:20]} 30. Kf2 {[%clk 0:02:29.7]} 30... Re7 {[%clk 0:01:18]} 31. Rb6
{[%clk 0:02:29.5]} 31... Rcd7 {[%clk 0:01:14.1]} 32. R1b2 {[%clk 0:02:29.9]}
32... Rc7 {[%clk 0:01:13.4]} 33. h4 {[%clk 0:02:30.3]} 33... h5 {[%clk
0:01:14.1]} 34. Rd6 {[%clk 0:02:28.1]} 34... Red7 {[%clk 0:01:12.2]} 35. Rbb6
{[%clk 0:02:27.6]} 35... exd4 {[%clk 0:01:04.8]} 36. exd4 {[%clk 0:02:27.4]}
36... Ke7 {[%clk 0:01:00.9]} 37. g4 {[%clk 0:02:27.1]} 37... hxg4 {[%clk
0:00:47.2]} 38. fxg4 {[%clk 0:02:27.4]} 38... Kf7 {[%clk 0:00:44.1]} 39. h5
{[%clk 0:02:26.2]} 39... Kg8 {[%clk 0:00:31.7]} 40. Kf3 {[%clk 0:02:22.7]} 40...
Kf7 {[%clk 0:00:32.3]} 41. h6 {[%clk 0:02:20.7]} 41... gxh6 {[%clk 0:00:28.1]}
42. Rxf6+ {[%clk 0:02:20.4]} 42... Kg7 {[%clk 0:00:29.7]} 43. Rg6+ {[%clk
0:02:20.6]} 43... Kf8 {[%clk 0:00:30.7]} 44. Rxh6 {[%clk 0:02:19.9]} 44... Rf7+
{[%clk 0:00:31.6]} 45. Rhf6 {[%clk 0:02:19.1]} 45... Rxf6+ {[%clk 0:00:32.3]}
46. Rxf6+ {[%clk 0:02:19.5]} 46... Kg7 {[%clk 0:00:29.9]} 47. Rd6 {[%clk
0:02:19.6]} 47... Rf7+ {[%clk 0:00:30.8]} 48. Kg3 {[%clk 0:02:18.9]} 48... Re7
{[%clk 0:00:31.3]} 49. Rxd5 {[%clk 0:02:19.6]} 49... Kg6 {[%clk 0:00:22.6]} 50.
Kf4 {[%clk 0:02:19.3]} 50... Rf7+ {[%clk 0:00:22.4]} 51. Ke4 {[%clk 0:02:18.6]}
51... Rf1 {[%clk 0:00:20.3]} 52. Rd7 {[%clk 0:02:16.8]} 52... Re1+ {[%clk
0:00:19.2]} 53. Kd5 {[%clk 0:02:17.1]} 53... Rb1 {[%clk 0:00:19.3]} 54. Re7
{[%clk 0:02:16.5]} 54... Kg5 {[%clk 0:00:19.7]} 55. Re4 {[%clk 0:02:16.7]} 55...
Rb4 {[%clk 0:00:16.3]} 56. Ke5 {[%clk 0:02:15.8]} 56... Rc4 {[%clk 0:00:15.7]}
57. Kd6 {[%clk 0:02:15]} 57... Kh4 {[%clk 0:00:11.4]} 58. Kc7 {[%clk 0:02:13.1]}
58... Rb4 {[%clk 0:00:12.3]} 59. c6 {[%clk 0:02:11.6]} 59... bxc6 {[%clk
0:00:12.5]} 60. Kxc6 {[%clk 0:02:10.4]} 60... Kg5 {[%clk 0:00:13.4]} 61. Kc5
{[%clk 0:02:10]} 61... Ra4 {[%clk 0:00:13.3]} 62. Kb5 {[%clk 0:02:08.1]} 62...
Ra1 {[%clk 0:00:11.6]} 63. d5 {[%clk 0:02:07.3]} 63... Rd1 {[%clk 0:00:12.4]}
64. Kc6 {[%clk 0:02:07.6]} 64... Kf6 {[%clk 0:00:12.1]} 65. d6 {[%clk 0:02:04]}
65... Rc1+ {[%clk 0:00:13.3]} 66. Kd7 {[%clk 0:02:04.4]} 66... Rd1 {[%clk
0:00:13.5]} 67. Kc7 {[%clk 0:02:04.5]} 67... Rc1+ {[%clk 0:00:13.4]} 68. Kd8
{[%clk 0:02:04.9]} 68... Kf7 {[%clk 0:00:13.3]} 69. d7 {[%clk 0:02:03.3]} 69...
Rd1 {[%clk 0:00:12.2]} 70. g5 {[%clk 0:02:00.9]} 70... Rg1 {[%clk 0:00:09.6]}
71. Kc7 {[%clk 0:01:58.9]} 71... Rc1+ {[%clk 0:00:09.8]} 72. Kd6 {[%clk
0:01:59.5]} 72... Rd1+ {[%clk 0:00:10.7]} 73. Kc6 {[%clk 0:01:37.4]} 73... Rc1+
{[%clk 0:00:03.6]} 74. Kd5 {[%clk 0:01:36.5]} 74... Rd1+ {[%clk 0:00:05.5]} 75.
Rd4 {[%clk 0:01:36.6]} 75... Rxd4+ {[%clk 0:00:07.4]} 76. Kxd4 {[%clk
0:01:36.1]} 76... Ke7 {[%clk 0:00:09.3]} 77. g6 {[%clk 0:01:36.4]} 77... Kxd7
{[%clk 0:00:10.3]} 78. g7 {[%clk 0:01:36.9]} 1-0